[Event "Early-Titled-Tuesday-Blitz-February-06-2024"]
[Site "Chess.com"]
[Date "2024.02.06"]
[Round "1"]
[White "AnishOnYoutube"]
[Black "soloderisas"]
[Result "1-0"]
[WhiteElo "2993"]
[BlackElo "2509"]
[TimeControl "180+1"]
[EndTime "8:07:18 PST"]
[Termination "AnishOnYoutube won by checkmate"]

1. Nf3 {[%clk 0:03:00.9]} 1... d5 {[%clk 0:02:59.5]} 2. e3 {[%clk 0:03:01.4]}
2... c6 {[%clk 0:02:58.6]} 3. b3 {[%clk 0:03:01.8]} 3... Bf5 {[%clk 0:02:58.9]}
4. Bb2 {[%clk 0:03:02.3]} 4... e6 {[%clk 0:02:59.4]} 5. Be2 {[%clk 0:03:01.6]}
5... Nd7 {[%clk 0:02:58.7]} 6. d3 {[%clk 0:03:01.2]} 6... h6 {[%clk 0:02:58]} 7.
Nbd2 {[%clk 0:03:01.4]} 7... Ngf6 {[%clk 0:02:58.2]} 8. O-O {[%clk 0:02:50.5]}
8... Be7 {[%clk 0:02:57.9]} 9. a3 {[%clk 0:02:49]} 9... a5 {[%clk 0:02:57.7]}
10. Re1 {[%clk 0:02:41.8]} 10... O-O {[%clk 0:02:55.8]} 11. Bf1 {[%clk
0:02:42.4]} 11... Bh7 {[%clk 0:02:50.6]} 12. g3 {[%clk 0:02:42.6]} 12... b5
{[%clk 0:02:48.6]} 13. Bg2 {[%clk 0:02:35.1]} 13... a4 {[%clk 0:02:46]} 14. b4
{[%clk 0:02:34.6]} 14... c5 {[%clk 0:02:46.3]} 15. bxc5 {[%clk 0:02:34.5]} 15...
Bxc5 {[%clk 0:02:40.5]} 16. Qb1 {[%clk 0:02:29.3]} 16... Qb6 {[%clk 0:02:36.8]}
17. Bd4 {[%clk 0:02:25.8]} 17... Rfc8 {[%clk 0:02:31.7]} 18. Qb2 {[%clk
0:02:25.7]} 18... b4 {[%clk 0:02:22.9]} 19. axb4 {[%clk 0:01:52.2]} 19... Qxb4
{[%clk 0:02:22.4]} 20. Reb1 {[%clk 0:01:48.3]} 20... Qxb2 {[%clk 0:02:00.6]} 21.
Rxb2 {[%clk 0:01:48.4]} 21... a3 {[%clk 0:01:45.8]} 22. Rba2 {[%clk 0:01:45.6]}
22... Bd6 {[%clk 0:01:34.1]} 23. Rb1 {[%clk 0:01:43]} 23... e5 {[%clk
0:01:25.1]} 24. Ba1 {[%clk 0:01:43.1]} 24... e4 {[%clk 0:01:18]} 25. dxe4 {[%clk
0:01:43.4]} 25... Nxe4 {[%clk 0:01:16.4]} 26. Nxe4 {[%clk 0:01:43.8]} 26... Bxe4
{[%clk 0:01:14]} 27. Nd4 {[%clk 0:01:44.5]} 27... Nf6 {[%clk 0:00:53.4]} 28. Rb3
{[%clk 0:01:19.1]} 28... Bxg2 {[%clk 0:00:36.1]} 29. Kxg2 {[%clk 0:01:19.2]}
29... Ne4 {[%clk 0:00:37]} 30. Nb5 {[%clk 0:01:15.7]} 30... Bf8 {[%clk
0:00:32.4]} 31. Rd3 {[%clk 0:01:06.3]} 31... Rd8 {[%clk 0:00:10.3]} 32. f3
{[%clk 0:01:01.7]} 32... Nc5 {[%clk 0:00:10]} 33. Rdxa3 {[%clk 0:01:01.6]} 33...
Rxa3 {[%clk 0:00:09.7]} 34. Rxa3 {[%clk 0:01:01.4]} 34... Rb8 {[%clk 0:00:09.7]}
35. Nd4 {[%clk 0:01:00.8]} 35... Rb1 {[%clk 0:00:08.9]} 36. Ra8 {[%clk
0:00:58.8]} 36... Kh7 {[%clk 0:00:06.2]} 37. Rxf8 {[%clk 0:00:57]} 37... Rxa1
{[%clk 0:00:06.5]} 38. Rxf7 {[%clk 0:00:57.8]} 38... Re1 {[%clk 0:00:06]} 39.
Rc7 {[%clk 0:00:55.3]} 39... Na4 {[%clk 0:00:04.8]} 40. Nf5 {[%clk 0:00:53.1]}
40... Nb2 {[%clk 0:00:03.5]} 41. Rxg7+ {[%clk 0:00:52.3]} 41... Kh8 {[%clk
0:00:04.4]} 42. Rg6 {[%clk 0:00:48.7]} 42... Re2+ {[%clk 0:00:04.4]} 43. Kh3
{[%clk 0:00:48.9]} 43... Rxc2 {[%clk 0:00:05]} 44. Rxh6+ {[%clk 0:00:49.1]}
44... Kg8 {[%clk 0:00:05.5]} 45. Kg4 {[%clk 0:00:49.3]} 45... Nd1 {[%clk
0:00:04.8]} 46. Kg5 {[%clk 0:00:47.2]} 46... Re2 {[%clk 0:00:03.3]} 47. Kf6
{[%clk 0:00:45.6]} 47... Nxe3 {[%clk 0:00:02]} 48. Ne7+ {[%clk 0:00:45.8]} 48...
Kf8 {[%clk 0:00:02]} 49. Rh8# {[%clk 0:00:46.6]} 1-0

[Event "Early-Titled-Tuesday-Blitz-February-06-2024"]
[Site "Chess.com"]
[Date "2024.02.06"]
[Round "1"]
[White "Mistango"]
[Black "jacky72"]
[Result "0-1"]
[WhiteElo "2456"]
[BlackElo "2829"]
[TimeControl "180+1"]
[EndTime "8:07:20 PST"]
[Termination "jacky72 won by checkmate"]

1. e4 {[%clk 0:03:00.9]} 1... c5 {[%clk 0:02:58.1]} 2. d4 {[%clk 0:03:00.6]}
2... cxd4 {[%clk 0:02:57.1]} 3. c3 {[%clk 0:03:01.3]} 3... d5 {[%clk 0:02:56.4]}
4. exd5 {[%clk 0:03:00.9]} 4... Qxd5 {[%clk 0:02:55.6]} 5. Nf3 {[%clk
0:03:01.6]} 5... Nc6 {[%clk 0:02:54.8]} 6. cxd4 {[%clk 0:03:01.7]} 6... Bg4
{[%clk 0:02:54.3]} 7. Be2 {[%clk 0:03:01.9]} 7... e6 {[%clk 0:02:53.9]} 8. Nc3
{[%clk 0:03:02]} 8... Qd7 {[%clk 0:02:50.8]} 9. O-O {[%clk 0:03:01.2]} 9... Nf6
{[%clk 0:02:51.5]} 10. h3 {[%clk 0:03:00.6]} 10... Bh5 {[%clk 0:02:50.7]} 11.
Ne5 {[%clk 0:02:48.6]} 11... Qxd4 {[%clk 0:02:26.9]} 12. Bxh5 {[%clk 0:02:34]}
12... Qxe5 {[%clk 0:02:07.9]} 13. Qb3 {[%clk 0:02:21.2]} 13... Bb4 {[%clk
0:01:49.3]} 14. Bf3 {[%clk 0:02:19.6]} 14... O-O {[%clk 0:01:32.3]} 15. Bxc6
{[%clk 0:02:12.9]} 15... Bd6 {[%clk 0:01:28]} 16. f4 {[%clk 0:02:01.5]} 16...
Qc5+ {[%clk 0:01:24.6]} 17. Kh1 {[%clk 0:01:58.4]} 17... Qxc6 {[%clk 0:01:19.4]}
18. Be3 {[%clk 0:01:57.9]} 18... Bc5 {[%clk 0:01:16.4]} 19. Bxc5 {[%clk
0:01:55.2]} 19... Qxc5 {[%clk 0:01:17.3]} 20. Rac1 {[%clk 0:01:51.2]} 20... Nh5
{[%clk 0:01:09.6]} 21. Kh2 {[%clk 0:01:50]} 21... Qe3 {[%clk 0:01:08.7]} 22. Nb5
{[%clk 0:01:43.8]} 22... Qxb3 {[%clk 0:01:05.5]} 23. axb3 {[%clk 0:01:44.7]}
23... a6 {[%clk 0:01:06.2]} 24. Nd6 {[%clk 0:01:42.7]} 24... b5 {[%clk
0:01:00.1]} 25. Ne4 {[%clk 0:01:32.5]} 25... Nf6 {[%clk 0:00:58]} 26. Nxf6+
{[%clk 0:01:31.8]} 26... gxf6 {[%clk 0:00:58.9]} 27. Rc6 {[%clk 0:01:17.2]}
27... Rfc8 {[%clk 0:00:59.3]} 28. Rfc1 {[%clk 0:01:16]} 28... Rxc6 {[%clk
0:00:59.6]} 29. Rxc6 {[%clk 0:01:15.9]} 29... Rd8 {[%clk 0:01:00.5]} 30. Rxa6
{[%clk 0:01:06.4]} 30... Rd3 {[%clk 0:01:01]} 31. f5 {[%clk 0:01:01.1]} 31...
exf5 {[%clk 0:00:51.4]} 32. Rxf6 {[%clk 0:00:59.6]} 32... Rxb3 {[%clk 0:00:52]}
33. Rxf5 {[%clk 0:00:59.5]} 33... Rxb2 {[%clk 0:00:52.8]} 34. Rc5 {[%clk
0:00:57.8]} 34... Kg7 {[%clk 0:00:51.4]} 35. h4 {[%clk 0:00:54.4]} 35... Rb1
{[%clk 0:00:51.3]} 36. Kg3 {[%clk 0:00:44.6]} 36... b4 {[%clk 0:00:51.3]} 37.
Rb5 {[%clk 0:00:44.3]} 37... b3 {[%clk 0:00:51.1]} 38. Rb6 {[%clk 0:00:43.8]}
38... Kf8 {[%clk 0:00:49.2]} 39. Kg4 {[%clk 0:00:42.4]} 39... Ke7 {[%clk
0:00:48.7]} 40. Kh5 {[%clk 0:00:41.4]} 40... b2 {[%clk 0:00:30.1]} 41. g4 {[%clk
0:00:32.7]} 41... Kf8 {[%clk 0:00:29.5]} 42. Kh6 {[%clk 0:00:29.4]} 42... Rh1
{[%clk 0:00:28.2]} 43. Rb8+ {[%clk 0:00:25.8]} 43... Ke7 {[%clk 0:00:25]} 44.
Rb7+ {[%clk 0:00:25]} 44... Kf6 {[%clk 0:00:20.6]} 45. Rxb2 {[%clk 0:00:21.1]}
45... Rxh4# {[%clk 0:00:20.3]} 0-1

[Event "Early-Titled-Tuesday-Blitz-February-06-2024"]
[Site "Chess.com"]
[Date "2024.02.06"]
[Round "1"]
[White "Elegance_Riks"]
[Black "EvgenyBurmakin"]
[Result "0-1"]
[WhiteElo "2753"]
[BlackElo "2441"]
[TimeControl "180+1"]
[EndTime "8:07:20 PST"]
[Termination "EvgenyBurmakin won by resignation"]

1. Nf3 {[%clk 0:03:00.9]} 1... Nf6 {[%clk 0:02:59.2]} 2. c4 {[%clk 0:03:00.3]}
2... g6 {[%clk 0:02:59.1]} 3. b3 {[%clk 0:02:59.7]} 3... Bg7 {[%clk 0:02:59.5]}
4. Bb2 {[%clk 0:02:59.4]} 4... O-O {[%clk 0:03:00.1]} 5. g3 {[%clk 0:02:59.5]}
5... d6 {[%clk 0:02:59.9]} 6. d4 {[%clk 0:02:57.7]} 6... Ne4 {[%clk 0:02:49.3]}
7. Bg2 {[%clk 0:02:55.9]} 7... c5 {[%clk 0:02:46.1]} 8. O-O {[%clk 0:02:56.1]}
8... Nc6 {[%clk 0:02:40.9]} 9. e3 {[%clk 0:02:56.3]} 9... Bg4 {[%clk 0:02:33.6]}
10. Qc1 {[%clk 0:02:55.6]} 10... Bxf3 {[%clk 0:02:15.1]} 11. Bxf3 {[%clk
0:02:55.4]} 11... Ng5 {[%clk 0:02:04.3]} 12. Bg2 {[%clk 0:02:55.1]} 12... cxd4
{[%clk 0:02:02.9]} 13. exd4 {[%clk 0:02:29.7]} 13... Nxd4 {[%clk 0:02:02.4]} 14.
Bxd4 {[%clk 0:02:07.1]} 14... Bxd4 {[%clk 0:02:03.3]} 15. Nc3 {[%clk 0:02:07.3]}
15... Ne6 {[%clk 0:01:42.1]} 16. Bxb7 {[%clk 0:02:00.5]} 16... Rb8 {[%clk
0:01:41.9]} 17. Bg2 {[%clk 0:01:51.5]} 17... Qa5 {[%clk 0:01:42.3]} 18. Nd5
{[%clk 0:01:51.4]} 18... Bxa1 {[%clk 0:01:33.7]} 19. Nxe7+ {[%clk 0:01:50.9]}
19... Kg7 {[%clk 0:01:34]} 20. Qxa1+ {[%clk 0:01:25.9]} 20... Qe5 {[%clk
0:01:27.2]} 21. Qd1 {[%clk 0:01:25.8]} 21... Rbe8 {[%clk 0:00:54.9]} 22. Re1
{[%clk 0:01:17.7]} 22... Qd4 {[%clk 0:00:47.6]} 23. Nc6 {[%clk 0:01:13.2]} 23...
Qxd1 {[%clk 0:00:23.9]} 24. Rxd1 {[%clk 0:01:14.1]} 24... Ng5 {[%clk 0:00:20.4]}
25. Nxa7 {[%clk 0:01:10.1]} 25... Re2 {[%clk 0:00:17.5]} 26. a3 {[%clk
0:01:03.6]} 26... Rfe8 {[%clk 0:00:17.3]} 27. Kf1 {[%clk 0:00:57.6]} 27... Rb2
{[%clk 0:00:12.8]} 28. h4 {[%clk 0:00:53.1]} 28... Ree2 {[%clk 0:00:11.4]} 29.
hxg5 {[%clk 0:00:33.4]} 29... Rxf2+ {[%clk 0:00:11.4]} 30. Kg1 {[%clk
0:00:33.9]} 30... Rxg2+ {[%clk 0:00:12.1]} 31. Kf1 {[%clk 0:00:33.8]} 31...
Rbf2+ {[%clk 0:00:11.1]} 32. Ke1 {[%clk 0:00:33.7]} 32... Rh2 {[%clk 0:00:11.6]}
33. Nb5 {[%clk 0:00:19.5]} 33... Rb2 {[%clk 0:00:09.8]} 34. Rd2 {[%clk
0:00:18.8]} 34... Rbxd2 {[%clk 0:00:09.2]} 35. Nc3 {[%clk 0:00:18.2]} 35... Rdg2
{[%clk 0:00:07.6]} 0-1

[Event "Early-Titled-Tuesday-Blitz-February-06-2024"]
[Site "Chess.com"]
[Date "2024.02.06"]
[Round "1"]
[White "Alen_Yeremyann"]
[Black "Kopytkin"]
[Result "1-0"]
[WhiteElo "2723"]
[BlackElo "2398"]
[TimeControl "180+1"]
[EndTime "8:07:20 PST"]
[Termination "Alen_Yeremyann won on time"]

1. e4 {[%clk 0:03:00.9]} 1... Nf6 {[%clk 0:02:58.2]} 2. e5 {[%clk 0:03:00.4]}
2... Nd5 {[%clk 0:02:57.2]} 3. c4 {[%clk 0:03:00.7]} 3... Nb6 {[%clk 0:02:56.3]}
4. d4 {[%clk 0:03:01.3]} 4... d6 {[%clk 0:02:53.9]} 5. f4 {[%clk 0:03:01.8]}
5... dxe5 {[%clk 0:02:53.2]} 6. fxe5 {[%clk 0:03:02.7]} 6... c5 {[%clk
0:02:53.6]} 7. d5 {[%clk 0:03:00.6]} 7... e6 {[%clk 0:02:53.9]} 8. d6 {[%clk
0:02:59.6]} 8... Qh4+ {[%clk 0:02:50.2]} 9. g3 {[%clk 0:02:02.7]} 9... Qe4+
{[%clk 0:02:49.9]} 10. Qe2 {[%clk 0:02:03.4]} 10... Qxh1 {[%clk 0:02:46.3]} 11.
Nf3 {[%clk 0:02:03.9]} 11... Nc6 {[%clk 0:02:43.1]} 12. Be3 {[%clk 0:02:03.2]}
12... Nxc4 {[%clk 0:02:39.9]} 13. Bxc5 {[%clk 0:01:53.9]} 13... N4xe5 {[%clk
0:02:16.4]} 14. Nxe5 {[%clk 0:01:41.4]} 14... Nxe5 {[%clk 0:02:09.1]} 15. Qxe5
{[%clk 0:01:39.3]} 15... Qd5 {[%clk 0:02:09]} 16. Qxd5 {[%clk 0:01:39]} 16...
exd5 {[%clk 0:02:08.6]} 17. Nc3 {[%clk 0:01:39.9]} 17... Be6 {[%clk 0:02:03.4]}
18. Bb5+ {[%clk 0:01:33.5]} 18... Kd8 {[%clk 0:02:02.2]} 19. Rd1 {[%clk
0:01:33.3]} 19... b6 {[%clk 0:01:23.5]} 20. Bb4 {[%clk 0:01:28.9]} 20... g6
{[%clk 0:01:10.1]} 21. Nxd5 {[%clk 0:01:26.9]} 21... Bxd5 {[%clk 0:01:09.4]} 22.
Rxd5 {[%clk 0:01:27.2]} 22... Bg7 {[%clk 0:01:08.3]} 23. d7 {[%clk 0:01:21.7]}
23... a6 {[%clk 0:00:56.1]} 24. Bc6 {[%clk 0:01:16.9]} 24... Ra7 {[%clk
0:00:56.5]} 25. Bd6 {[%clk 0:01:01.2]} 25... Bf6 {[%clk 0:00:51.7]} 26. Rd3
{[%clk 0:00:46.4]} 26... b5 {[%clk 0:00:26.7]} 27. Bc5 {[%clk 0:00:41.3]} 27...
Rc7 {[%clk 0:00:22.4]} 28. Bb6 {[%clk 0:00:41.9]} 28... Be5 {[%clk 0:00:22.6]}
29. Re3 {[%clk 0:00:40]} 29... f6 {[%clk 0:00:22.9]} 30. g4 {[%clk 0:00:30]}
30... Rf8 {[%clk 0:00:21.5]} 31. g5 {[%clk 0:00:29.5]} 31... Rf7 {[%clk
0:00:02]} 32. b4 {[%clk 0:00:12.2]} 32... Re7 {[%clk 0:00:01.3]} 33. Kf1 {[%clk
0:00:12.8]} 33... fxg5 {[%clk 0:00:01.1]} 34. Rf3 {[%clk 0:00:12.5]} 1-0

[Event "Early-Titled-Tuesday-Blitz-February-06-2024"]
[Site "Chess.com"]
[Date "2024.02.06"]
[Round "1"]
[White "chegueps"]
[Black "rikchessmx"]
[Result "1-0"]
[WhiteElo "2637"]
[BlackElo "2312"]
[TimeControl "180+1"]
[EndTime "8:07:21 PST"]
[Termination "chegueps won by checkmate"]

1. e4 {[%clk 0:02:46.1]} 1... c5 {[%clk 0:02:59.5]} 2. c3 {[%clk 0:02:43.8]}
2... e6 {[%clk 0:02:52.3]} 3. d4 {[%clk 0:02:35.7]} 3... d5 {[%clk 0:02:50.2]}
4. e5 {[%clk 0:02:33.5]} 4... Nc6 {[%clk 0:02:49.1]} 5. Nf3 {[%clk 0:02:32.4]}
5... Bd7 {[%clk 0:02:48.6]} 6. Bd3 {[%clk 0:02:30.4]} 6... Qb6 {[%clk
0:02:47.9]} 7. O-O {[%clk 0:02:26.9]} 7... cxd4 {[%clk 0:02:47.1]} 8. a3 {[%clk
0:02:23.7]} 8... dxc3 {[%clk 0:02:46.2]} 9. Nxc3 {[%clk 0:02:21.1]} 9... Rc8
{[%clk 0:02:44.3]} 10. Re1 {[%clk 0:02:19.3]} 10... Nge7 {[%clk 0:02:43.2]} 11.
h4 {[%clk 0:02:16.6]} 11... h5 {[%clk 0:02:39.1]} 12. Ng5 {[%clk 0:02:04.4]}
12... Ng8 {[%clk 0:02:19.8]} 13. Be3 {[%clk 0:01:55.3]} 13... d4 {[%clk
0:02:11.7]} 14. Na4 {[%clk 0:01:52.7]} 14... Qc7 {[%clk 0:02:11.4]} 15. Bf4
{[%clk 0:01:50.6]} 15... a6 {[%clk 0:02:08.4]} 16. b4 {[%clk 0:01:49.5]} 16...
b5 {[%clk 0:02:08.1]} 17. Nc5 {[%clk 0:01:49.9]} 17... Bxc5 {[%clk 0:02:05.8]}
18. bxc5 {[%clk 0:01:50.8]} 18... Nge7 {[%clk 0:02:01.4]} 19. Qf3 {[%clk
0:01:47.5]} 19... Nd5 {[%clk 0:01:56.9]} 20. Bh2 {[%clk 0:01:45.9]} 20... Nd8
{[%clk 0:01:56.2]} 21. Rac1 {[%clk 0:01:42.3]} 21... Bc6 {[%clk 0:01:55.4]} 22.
Be4 {[%clk 0:01:39.8]} 22... Nc3 {[%clk 0:01:51]} 23. Rxc3 {[%clk 0:01:31.3]}
23... dxc3 {[%clk 0:01:49.5]} 24. Bxc6+ {[%clk 0:01:29.1]} 24... Qxc6 {[%clk
0:01:44.9]} 25. Ne4 {[%clk 0:01:30]} 25... Rc7 {[%clk 0:01:26.6]} 26. Qxc3
{[%clk 0:01:23.6]} 26... Qd5 {[%clk 0:01:18.9]} 27. Qf3 {[%clk 0:01:16.5]} 27...
Rxc5 {[%clk 0:00:59.1]} 28. Rd1 {[%clk 0:01:14.7]} 28... Qc6 {[%clk 0:00:53.3]}
29. Nxc5 {[%clk 0:00:45.7]} 29... Qxc5 {[%clk 0:00:50.8]} 30. Bf4 {[%clk
0:00:43.3]} 30... O-O {[%clk 0:00:47.4]} 31. Bg5 {[%clk 0:00:43.5]} 31... Nc6
{[%clk 0:00:41.8]} 32. Qg3 {[%clk 0:00:41.3]} 32... Qxe5 {[%clk 0:00:36.1]} 33.
Bf4 {[%clk 0:00:37.9]} 33... Qf5 {[%clk 0:00:34.1]} 34. Bd6 {[%clk 0:00:31.7]}
34... Re8 {[%clk 0:00:27]} 35. Qc3 {[%clk 0:00:31.8]} 35... Qe4 {[%clk
0:00:20.6]} 36. f3 {[%clk 0:00:28.3]} 36... Qc4 {[%clk 0:00:20.5]} 37. Qe3
{[%clk 0:00:24.5]} 37... Ne7 {[%clk 0:00:17.9]} 38. Bxe7 {[%clk 0:00:22]} 38...
Rxe7 {[%clk 0:00:18]} 39. Rd8+ {[%clk 0:00:22.6]} 39... Kh7 {[%clk 0:00:18.1]}
40. Qg5 {[%clk 0:00:23]} 40... f6 {[%clk 0:00:02.8]} 41. Qxh5# {[%clk
0:00:22.6]} 1-0

[Event "Early-Titled-Tuesday-Blitz-February-06-2024"]
[Site "Chess.com"]
[Date "2024.02.06"]
[Round "1"]
[White "Mackster23"]
[Black "MdChess1734"]
[Result "1-0"]
[WhiteElo "2711"]
[BlackElo "2391"]
[TimeControl "180+1"]
[EndTime "8:07:22 PST"]
[Termination "Mackster23 won on time"]

1. e4 {[%clk 0:03:00.9]} 1... c6 {[%clk 0:02:58.5]} 2. d4 {[%clk 0:03:00.1]}
2... d5 {[%clk 0:02:58.1]} 3. e5 {[%clk 0:03:00.7]} 3... Bf5 {[%clk 0:02:56.5]}
4. Nf3 {[%clk 0:03:01.2]} 4... e6 {[%clk 0:02:48.9]} 5. Be2 {[%clk 0:03:01.4]}
5... Nd7 {[%clk 0:02:45.3]} 6. O-O {[%clk 0:03:00.9]} 6... Ne7 {[%clk 0:02:44]}
7. c3 {[%clk 0:03:00]} 7... Bg6 {[%clk 0:02:40.7]} 8. a4 {[%clk 0:02:56.7]} 8...
Nf5 {[%clk 0:02:38.5]} 9. a5 {[%clk 0:02:54.7]} 9... a6 {[%clk 0:02:22.3]} 10.
b4 {[%clk 0:02:54]} 10... h5 {[%clk 0:02:20.8]} 11. Bf4 {[%clk 0:02:43.2]} 11...
h4 {[%clk 0:02:19.6]} 12. h3 {[%clk 0:02:42.8]} 12... Be7 {[%clk 0:02:18.1]} 13.
Bd3 {[%clk 0:02:39.8]} 13... Bh5 {[%clk 0:02:00.2]} 14. Nbd2 {[%clk 0:02:39]}
14... g5 {[%clk 0:01:48.6]} 15. Bh2 {[%clk 0:02:38.2]} 15... g4 {[%clk
0:01:47.9]} 16. hxg4 {[%clk 0:02:37.2]} 16... Bxg4 {[%clk 0:01:48.4]} 17. Bf4
{[%clk 0:02:23.7]} 17... Nf8 {[%clk 0:01:31]} 18. Qc2 {[%clk 0:02:00.3]} 18...
Ng6 {[%clk 0:01:29.7]} 19. Be3 {[%clk 0:01:57.8]} 19... h3 {[%clk 0:01:09.4]}
20. g3 {[%clk 0:01:44.5]} 20... Rg8 {[%clk 0:00:53.5]} 21. Nh2 {[%clk
0:01:41.2]} 21... Nxe3 {[%clk 0:00:42.2]} 22. fxe3 {[%clk 0:01:35]} 22... Nh4
{[%clk 0:00:17.2]} 23. Kh1 {[%clk 0:00:52.6]} 23... Ng2 {[%clk 0:00:15.9]} 24.
Nxg4 {[%clk 0:00:53.3]} 24... Rxg4 {[%clk 0:00:14.7]} 25. Rf3 {[%clk 0:00:53.9]}
25... Kd7 {[%clk 0:00:13.3]} 26. c4 {[%clk 0:00:32.9]} 26... Qg8 {[%clk
0:00:12.8]} 27. Nf1 {[%clk 0:00:25.2]} 27... Nh4 {[%clk 0:00:11.5]} 28. Rf4
{[%clk 0:00:22.9]} 28... Rxf4 {[%clk 0:00:10.6]} 29. exf4 {[%clk 0:00:19.4]}
29... Nf3 {[%clk 0:00:10.6]} 30. Qf2 {[%clk 0:00:18.8]} 30... Qg4 {[%clk
0:00:06]} 31. Be2 {[%clk 0:00:18]} 31... Rb8 {[%clk 0:00:05.2]} 32. Bxf3 {[%clk
0:00:17.4]} 1-0

[Event "Early-Titled-Tuesday-Blitz-February-06-2024"]
[Site "Chess.com"]
[Date "2024.02.06"]
[Round "1"]
[White "ProChessWICTH"]
[Black "SmirnovTimofey2000"]
[Result "1-0"]
[WhiteElo "2545"]
[BlackElo "1975"]
[TimeControl "180+1"]
[EndTime "8:07:22 PST"]
[Termination "ProChessWICTH won on time"]

1. e4 {[%clk 0:03:00.2]} 1... e5 {[%clk 0:02:57.9]} 2. Nf3 {[%clk 0:02:59.9]}
2... Nf6 {[%clk 0:02:57.5]} 3. Nc3 {[%clk 0:02:57.1]} 3... Bb4 {[%clk
0:02:56.6]} 4. Bc4 {[%clk 0:02:55.8]} 4... O-O {[%clk 0:02:55.3]} 5. d3 {[%clk
0:02:51.8]} 5... d5 {[%clk 0:02:55]} 6. exd5 {[%clk 0:02:51.2]} 6... Nxd5 {[%clk
0:02:54.2]} 7. Bd2 {[%clk 0:02:51.9]} 7... Nxc3 {[%clk 0:02:51.6]} 8. bxc3
{[%clk 0:02:51.6]} 8... Bd6 {[%clk 0:02:52]} 9. h3 {[%clk 0:02:51]} 9... Nc6
{[%clk 0:02:45.9]} 10. O-O {[%clk 0:02:50.9]} 10... Na5 {[%clk 0:02:42.5]} 11.
Bb3 {[%clk 0:02:25]} 11... Nxb3 {[%clk 0:02:42.3]} 12. cxb3 {[%clk 0:02:21.8]}
12... Bf5 {[%clk 0:02:38.4]} 13. d4 {[%clk 0:02:21.3]} 13... e4 {[%clk
0:02:32.7]} 14. Ne5 {[%clk 0:02:15.3]} 14... Qf6 {[%clk 0:02:15.5]} 15. Nc4
{[%clk 0:02:10.3]} 15... b5 {[%clk 0:02:12.1]} 16. Nxd6 {[%clk 0:02:10.1]} 16...
cxd6 {[%clk 0:02:12.1]} 17. Qe2 {[%clk 0:02:03.2]} 17... a6 {[%clk 0:02:08.7]}
18. a4 {[%clk 0:01:55.5]} 18... bxa4 {[%clk 0:02:07.2]} 19. Rxa4 {[%clk
0:01:55.3]} 19... d5 {[%clk 0:02:07.6]} 20. Rfa1 {[%clk 0:01:54.4]} 20... Qg6
{[%clk 0:02:03]} 21. Kh1 {[%clk 0:01:49.5]} 21... Bc8 {[%clk 0:02:01.8]} 22. c4
{[%clk 0:01:23.7]} 22... dxc4 {[%clk 0:01:52.6]} 23. bxc4 {[%clk 0:01:24.6]}
23... Rd8 {[%clk 0:01:38.6]} 24. d5 {[%clk 0:01:23]} 24... Bd7 {[%clk
0:01:11.3]} 25. Ra5 {[%clk 0:01:15]} 25... Rdb8 {[%clk 0:01:09.4]} 26. Bf4
{[%clk 0:01:08.8]} 26... Rc8 {[%clk 0:00:50.5]} 27. c5 {[%clk 0:00:56.8]} 27...
Bb5 {[%clk 0:00:48.3]} 28. Qxb5 {[%clk 0:00:43.9]} 28... axb5 {[%clk 0:00:35]}
29. Rxa8 {[%clk 0:00:44.8]} 29... Qf5 {[%clk 0:00:18.4]} 30. g4 {[%clk
0:00:38.1]} 30... Qd7 {[%clk 0:00:10.5]} 31. R1a7 {[%clk 0:00:36.5]} 31... Qe8
{[%clk 0:00:06.5]} 32. Rxc8 {[%clk 0:00:30]} 32... Qxc8 {[%clk 0:00:06.9]} 33.
d6 {[%clk 0:00:21.6]} 33... g5 {[%clk 0:00:06.7]} 34. d7 {[%clk 0:00:20.5]}
34... Qd8 {[%clk 0:00:01.8]} 35. Bxg5 {[%clk 0:00:19.6]} 35... Qxg5 {[%clk
0:00:01.2]} 36. Ra8+ {[%clk 0:00:20]} 1-0